fUSD/lending_fUSD_20251030
["ID","MTS","AMOUNT","RATE_DAILY","PERIOD"]
[392712870,1761850238669,-151.0,0.00021818,7]
[392712871,1761850238679,-151.0,0.00021818,7]
[392712872,1761850238689,-151.0,0.00021818,7]
[392712873,1761850238699,-151.0,0.00021818,7]
[392712874,1761850238709,-151.0,0.00021818,7]
[392712875,1761850238719,-151.0,0.00021818,7]
[392712876,1761850238728,-151.0,0.00021818,7]
[392712877,1761850238738,-151.0,0.00021818,7]
[392712878,1761850238749,-187.12856323,0.0002187,2]
[392712879,1761850238758,-160.97,0.00022,2]
[392712880,1761850238768,-489.35022871,0.000221,2]
[392712881,1761850238778,-237.77968233,0.0002211,2]
[392712882,1761850238787,-159.01753014,0.00022308,2]
[392712883,1761850238797,-774.6405838,0.00022397,2]
[392712884,1761850238806,-21917.65335482,0.000225,2]
[392712885,1761850238816,-10798.6193056,0.00022544,2]
[392712886,1761850238825,-261.0,0.00022599,2]
[392712887,1761850238835,-213.27647,0.00023,2]
[392712888,1761850238845,-235.97,0.00023382,2]
[392712889,1761850238855,-2727.78570992,0.00023396,2]
[392712890,1761850238864,-150.0,0.00023652,2]
[392712891,1761850238874,-150.0,0.00023789,2]
[392712892,1761850238885,-3158.0,0.000239,2]
[392712893,1761850238895,-1009.58551906,0.00024,2]
[392712894,1761850238905,-151.0,0.000241,7]
[392712895,1761850238915,-151.0,0.000241,7]
[392712896,1761850238925,-151.0,0.000241,7]
[392712897,1761850238935,-195.181761,0.000241,7]
[392712898,1761850238944,-151.0,0.000243,7]
[392712899,1761850238954,-209.650987,0.000243,7]
[392712900,1761850238964,-151.0,0.000243,7]
[392712901,1761850238974,-151.0,0.000243,7]
[392712902,1761850238984,-5516.0,0.000245,3]
[392712903,1761850238993,-4533.5431301,0.0002459,2]
[392712904,1761850239003,-6909.54280565,0.0002459,2]
[392712905,1761850239017,-500.0,0.0002459,2]
[392712906,1761850239028,-707.97205118,0.0002459,2]
[392712907,1761850239039,-3388.0,0.0002459,2]
[392712908,1761850239097,-426.71827425,0.0002459,2]
[392712909,1761850239108,-6101.12876713,0.0002459,2]
[392712910,1761850239120,-264.63007746,0.0002459,2]
[392712914,1761850240278,-316.418053,0.0001995,7]
[392712915,1761850240288,-316.418053,0.00021818,7]
[392712916,1761850240297,-123.3270332,0.00023422,2]
[392712917,1761850240542,-756.14999999,0.00023422,2]
[392712923,1761850243274,-89.33669372,0.00014873,2]
[392712924,1761850243385,-83.05015751,0.00014873,2]
[392712925,1761850243395,-316.418053,0.0001995,7]
[392712926,1761850243404,-151.0,0.0001995,7]
[392712927,1761850243415,-265.511975,0.0001995,7]
[392712928,1761850243425,-316.418053,0.0001995,7]
[392712929,1761850243434,-151.0,0.0001995,7]
[392712930,1761850243444,-316.418053,0.00021818,7]
[392712931,1761850243453,-151.0,0.00021818,7]
[392712932,1761850243463,-316.418053,0.00021818,7]
[392712933,1761850243472,-151.0,0.00021818,7]
[392712934,1761850243481,-4021.76825796,0.00023422,2]
[392712935,1761850243490,-316.418053,0.000245,7]
[392712936,1761850243501,-316.418053,0.000245,7]
[392712937,1761850243510,-151.0,0.000245,7]
[392712938,1761850243520,-316.418053,0.000245,7]
[392712939,1761850243530,-5229.33953083,0.0002459,2]
[392712940,1761850243539,-151.022211,0.0002459,7]
[392712941,1761850243549,-153.431204,0.0002459,7]
[392712942,1761850243559,-151.0,0.0002459,7]
[392712943,1761850243568,-151.0,0.0002459,7]
[392712944,1761850243578,-151.0,0.0002459,7]
[392712945,1761850243588,-151.0,0.0002459,7]
[392712946,1761850243597,-151.0,0.0002459,7]
[392712947,1761850243606,-194.234144,0.0002459,7]
[392712948,1761850243616,-151.0,0.0002459,7]
[392712949,1761850243625,-151.0,0.0002459,7]
[392712950,1761850243634,-198.927737,0.0002459,7]
[392712951,1761850243643,-151.0,0.0002459,7]
[392712953,1761850243653,-151.0,0.0002459,7]
[392712954,1761850243662,-182.713429,0.0002459,7]
[392712955,1761850243671,-151.0,0.0002459,7]
[392712956,1761850243681,-151.0,0.0002459,7]
[392712957,1761850243690,-282.679329,0.0002459,7]
[392712958,1761850243699,-151.0,0.0002459,7]
[392712959,1761850243708,-151.0,0.0002459,7]
[392712960,1761850243717,-151.0,0.0002459,7]
[392712961,1761850243726,-151.0,0.0002459,7]
[392712962,1761850243735,-151.0,0.0002459,7]
[392712963,1761850243744,-151.0,0.0002459,7]
[392712964,1761850243753,-151.0,0.0002459,7]
[392712965,1761850243762,-151.0,0.0002459,7]
[392712966,1761850243771,-151.0,0.0002459,7]
[392712967,1761850243781,-184.869351,0.0002459,7]
[392712968,1761850243790,-184.869351,0.0002459,7]
[392712969,1761850243799,-184.869351,0.0002459,7]
[392712970,1761850243810,-184.869351,0.0002459,7]
[392712971,1761850243819,-1000.0,0.00024624,2]
[392712972,1761850243828,-159.01753014,0.00024767,2]
[392712973,1761850243838,-199.703718,0.000248,7]
[392712974,1761850243847,-151.0,0.000248,7]
[392712975,1761850243857,-151.0,0.000248,7]
[392712976,1761850243865,-151.0,0.000248,7]
[392712977,1761850243874,-151.0,0.000248,7]
[392712978,1761850243884,-151.0,0.000248,7]
[392712979,1761850243893,-151.0,0.000248,7]
[392712980,1761850243902,-219.781758,0.000248,7]
[392712981,1761850243911,-151.0,0.000248,7]
[392712982,1761850243920,-151.0,0.000248,7]
[392712983,1761850243930,-151.0,0.000248,7]
[392712984,1761850243939,-151.0,0.000248,7]
[392712985,1761850243948,-151.0,0.000248,7]
[392712986,1761850243958,-287.23767,0.000248,7]
[392712987,1761850243967,-151.0,0.000248,7]
[392712988,1761850243977,-287.964008,0.000248,7]
[392712989,1761850243986,-477.13749083,0.000248,3]
[392712990,1761850243995,-184.869351,0.000248,7]
[392712991,1761850244005,-184.869351,0.000248,7]
[392712992,1761850244014,-184.869351,0.000248,7]
[392712993,1761850244023,-184.869351,0.000248,7]
[392712994,1761850244032,-134776.84242308,0.000248,3]
[392712995,1761850244045,-63122.61222992,0.000248,3]
[392712996,1761850244055,-151.0,0.000248,7]
[392712997,1761850244064,-151.0,0.000248,7]
[392712998,1761850244073,-151.0,0.000248,7]
[392712999,1761850244082,-151.0,0.000248,7]
[392713000,1761850244091,-316.418053,0.000248,7]
[392713001,1761850244100,-316.418053,0.000248,7]
[392713002,1761850244109,-151.0,0.000248,7]
[392713003,1761850244119,-316.418053,0.000248,7]
[392713004,1761850244128,-151.0,0.0002489,7]
[392713005,1761850244137,-151.0,0.0002489,7]
[392713006,1761850244146,-151.0,0.0002489,7]
[392713007,1761850244155,-151.0,0.0002489,7]
[392713008,1761850244164,-151.0,0.0002489,7]
[392713009,1761850244173,-223441.36599532,0.0002489,3]
[392713010,1761850244184,-147620.11147868,0.0002489,3]
[392713011,1761850244193,-151.0,0.0002489,7]
[392713012,1761850244203,-151.0,0.0002489,7]
[392713013,1761850244212,-228.01278394,0.0002489,2]
[392713014,1761850244221,-151.02,0.0002489,2]
[392713015,1761850244230,-151.02,0.0002489,2]
[392713016,1761850244239,-151.02,0.0002489,2]
[392713017,1761850244257,-151.02,0.0002489,2]
[392713018,1761850244267,-151.02,0.0002489,2]
[392713019,1761850244276,-151.02,0.0002489,2]
[392713020,1761850244286,-151.02,0.0002489,2]
[392713021,1761850244295,-151.02,0.0002489,2]
[392713022,1761850244305,-151.02,0.0002489,2]
[392713023,1761850244315,-151.02,0.0002489,2]
[392713024,1761850244324,-316.418053,0.0002489,7]
[392713025,1761850244334,-316.418053,0.0002489,7]
[392713026,1761850244343,-151.0,0.0002489,7]
[392713027,1761850244352,-666.0,0.00024899,2]
[392713028,1761850244362,-300.0,0.00024899,10]
[392713029,1761850244375,-300.0,0.00024899,10]
[392713030,1761850244384,-208.160694,0.000249,7]
[392713031,1761850244393,-151.0,0.000249,7]
[392713032,1761850244402,-488537.53013675,0.000249,2]
[392713048,1761850246438,-296.244118,0.00014999,2]
[392713049,1761850246569,-91.04476475,0.00014999,2]
[392713050,1761850246578,-211.60523451,0.0001995,7]
[392713148,1761850459817,150.0,0.00030137,120]
[392713149,1761850460102,150.0,0.00030137,120]
[392713150,1761850460303,200.0,0.00030137,120]
[392713336,1761851037325,348.5,0.00031507,120]
[392713337,1761851371136,-250.0,0.00017,2]
[392713338,1761851371156,-181.18711399,0.000187,2]
[392713339,1761851371177,-190.75300357,0.000187,2]
[392713356,1761851431704,-109.24699643,0.000187,2]
[392713357,1761851431714,-1000.0,0.000208,2]
[392713358,1761851431723,-150.0,0.00022,2]
[392713359,1761851431732,-119.17221882,0.00022,2]
[392713360,1761851431756,-55.82778118,0.00022,2]
[392713362,1761851431767,-244.26,0.00023619,2]
[392713363,1761851431777,-117.01373971,0.00023633,3]
[392713364,1761851431789,-382.98626029,0.00023633,3]
[392713365,1761851431798,-361.4137397,0.00023654,2]
[392713369,1761851435935,162.03064578,0.00031506,120]
[392713371,1761851437350,-599.4,0.00023654,2]
[392713372,1761851437361,-2344.72617378,0.00023654,2]
[392713373,1761851437372,-1694.46008652,0.00023654,2]
[392713374,1761851437381,-117.99388453,0.00023694,2]
[392713375,1761851437392,-950.59969274,0.00023694,2]
[392713376,1761851437402,-557.92777157,0.00023694,2]
[392713377,1761851437455,-225.89865116,0.00023694,2]
[392713378,1761851437465,-10352.59,0.00023743,2]
[392713379,1761851437473,-425.61492428,0.00023814,2]
[392713380,1761851437482,-1890.74,0.00023815,2]
[392713381,1761851437491,-150.0,0.00023838,2]
[392713382,1761851437500,-2906.95091249,0.00023996,2]
[392713383,1761851437511,-9782.5623848,0.00023996,2]
[392713384,1761851437522,-2447.54670271,0.00023996,2]
[392713385,1761851437531,-152.39,0.00024158,2]
[392713386,1761851437539,-370.2878792,0.000242,2]
[392713387,1761851437550,-253.83024,0.000242,2]
[392713448,1761851439636,-876.32510737,0.000242,2]
[392713449,1761851439647,-499.55677343,0.000242,2]
[392713450,1761851439656,-373.0,0.00024363,2]
[392713451,1761851439665,-2674.94322657,0.00024364,2]
[392713452,1761851439708,-1397.21464941,0.00024364,2]
[392713453,1761851439720,-935.32221113,0.00024364,2]
[392713454,1761851439815,-372.17388324,0.00024364,2]
[392713470,1761851443851,-343.11,0.00024364,2]
[392713471,1761851443896,-535.321,0.00024364,2]
[392713496,1761851445526,-13659.39023803,0.00024364,2]
[392713497,1761851445538,-256.3599924,0.00024364,2]
[392713498,1761851445569,-2044.98479922,0.00024364,2]
[392713499,1761851445578,-152.39,0.00024387,2]
[392713500,1761851445587,-219.25936409,0.00024426,2]
[392713501,1761851445596,-1000.0,0.00024467,2]
[392713502,1761851445605,-1000.0,0.000245,2]
[392713503,1761851445614,-892.56216734,0.00024613,2]
[392713504,1761851445623,-152.39,0.00024617,2]
[392713505,1761851445632,-1000.0,0.00024658,2]
[392713506,1761851445641,-200.0,0.00024701,2]
[392713507,1761851445650,-1636.02060919,0.000248,2]
[392713508,1761851445661,-1070.0,0.000248,2]
[392713509,1761851445672,-1214.97562373,0.000248,2]
[392713510,1761851445681,-152.39,0.00024847,2]
[392713511,1761851445690,-797.69,0.00024863,3]
[392713512,1761851445703,-549.29895331,0.00024872,2]
[392713513,1761851445713,-500.47716849,0.00024873,2]
[392713514,1761851445722,-500.0,0.00024873,2]
[392713515,1761851445730,-500.0,0.00024873,2]
[392713516,1761851445741,-422.76465953,0.00024873,2]
[392713518,1761851445751,-479.26697898,0.00024873,2]
[392713520,1761851445760,-3992.97808516,0.00024873,2]
[392713521,1761851445771,-5783.376444,0.00024873,2]
[392713832,1761851467170,500.0,0.0002766,120]
[392713833,1761851467560,175.0,0.0002898,120]
[392713834,1761851469931,1760.78,0.00012146,2]
[392713835,1761851470141,1760.78,0.00012785,2]
[392713836,1761851470425,1760.78,0.00013424,2]
[392713837,1761851470897,1760.78,0.00014064,2]
[392713839,1761852094475,-1760.78,0.00014703,2]
[392713840,1761852094500,-808.163,0.00015,2]
[392713841,1761852114111,157.0,0.000315,120]
[392713863,1761852307568,467265.30109314,0.00015,2]
[392713870,1761852433776,2097.49394517,0.0001305,2]
[392713871,1761852465220,2190.49449032,0.00013,2]
[392713872,1761852471886,52955.42280859,0.00015,2]
[392713874,1761852511801,4458.28082449,0.00014999,2]
[392713875,1761852528480,220.28709302,0.00014924,2]
[392713877,1761852555089,-1760.78,0.00015342,2]
[392713878,1761852555113,-477.13749083,0.00015537,2]
[392713879,1761852555132,-183.934052,0.00015901,2]
[392713880,1761852555155,-1400.92888604,0.00015981,2]
[392713887,1761852631654,-359.85111396,0.00015981,2]
[392713888,1761852631666,-1760.78,0.00016621,2]
[392713889,1761852631676,-547.0,0.00016874,2]
[392713890,1761852631686,-1200.0,0.00016874,2]
[392713891,1761852631697,-261.40211524,0.00016876,2]
[392713892,1761852631707,-300.0,0.00017259,2]
[392713893,1761852631718,-300.0,0.00017259,2]
[392713894,1761852631731,-1177.96621029,0.0001726,2]
[392713895,1761852631743,-582.81378971,0.0001726,2]
[392713896,1761852631754,-3769.62366202,0.0001758,2]
[392713897,1761852631765,-195.0,0.0001758,2]
[392713898,1761852631775,-1760.78,0.00017899,2]
[392713899,1761852631787,-1680.0,0.00018524,2]
[392713900,1761852631797,-1760.78,0.00018538,2]
[392713901,1761852631808,-500.0,0.000186,2]
[392713902,1761852631819,-500.0,0.000186,2]
[392713903,1761852631829,-500.0,0.00019165,2]
[392713904,1761852631841,-1760.78,0.00019178,2]
[392713905,1761852631852,-1760.78,0.00019817,2]
[392713906,1761852631863,-2351.0,0.00020336,2]
[392713907,1761852631873,-1760.78,0.00020456,2]
[392713908,1761852631884,-156.37,0.0002071,2]
[392713909,1761852631895,-238.01,0.00020806,2]
[392713910,1761852631906,-1760.78,0.00021096,2]
[392713911,1761852631917,-178.44,0.000214,7]
[392713913,1761852631928,-200.0,0.00021649,2]
[392713915,1761852631939,-1760.78,0.00021735,2]
[392713917,1761852631949,-1000.0,0.00021897,2]
[392713919,1761852631961,-150.0,0.00022006,2]
[392713921,1761852631971,-250.0,0.00022007,2]
[392713923,1761852631982,-392.26,0.00022023,2]
[392713925,1761852631998,-150.0,0.00022113,2]
[392713926,1761852632011,-300.0,0.00022175,2]
[392713928,1761852632022,-3292.0,0.00022325,2]
[392713930,1761852632033,-1760.78,0.00022374,2]
[392713932,1761852632043,-196.01,0.00022408,2]
[392713934,1761852632054,-4386.23,0.00022727,2]
[392713992,1761852632587,-1760.78,0.00023013,2]
[392713995,1761852632624,-300.0,0.00023544,2]
[392713996,1761852632646,-2000.0,0.000236,2]
[392713997,1761852632655,-1760.78,0.00023653,2]
[392713998,1761852632665,-3051.06140625,0.0002394,2]
[392713999,1761852632674,-500.0,0.00023973,2]
[392714000,1761852632684,-384.50926731,0.00023978,2]
[392714001,1761852632693,-165.4863178,0.00023979,2]
[392714002,1761852632705,-93790.9173345,0.00023979,2]
[392714003,1761852632714,-171.15,0.0002404,2]
[392714004,1761852632723,-250.0,0.0002404,2]
[392714005,1761852632733,-277.35679052,0.0002404,2]
[392714006,1761852632742,-250.0,0.0002404,2]
[392714007,1761852632752,-250.0,0.0002404,2]
[392714008,1761852632761,-1711.17633745,0.0002404,2]
[392714009,1761852632771,-250.0,0.0002404,2]
[392714010,1761852632780,-250.0,0.0002404,2]
[392714011,1761852632789,-500.0,0.0002404,2]
[392714012,1761852632798,-250.0,0.0002404,2]
[392714013,1761852632807,-500.0,0.0002404,2]
[392714014,1761852632817,-155.54137155,0.0002404,2]
[392714015,1761852632826,-250.0,0.0002404,2]
[392714016,1761852632835,-500.0,0.0002404,2]
[392714017,1761852632845,-250.0,0.0002404,2]
[392714018,1761852632854,-500.0,0.0002404,2]
[392714019,1761852632864,-250.0,0.0002404,2]
[392714020,1761852632874,-500.0,0.0002404,2]
[392714021,1761852632883,-250.0,0.0002404,2]
[392714022,1761852632893,-500.0,0.0002404,2]
[392714023,1761852632902,-500.0,0.0002404,2]
[392714024,1761852632911,-250.0,0.0002404,2]
[392714025,1761852632920,-500.0,0.0002404,2]
[392714026,1761852632929,-282.79597328,0.0002404,2]
[392714027,1761852632938,-250.0,0.0002404,2]
[392714028,1761852632947,-500.0,0.0002404,2]
[392714029,1761852632957,-250.0,0.0002404,2]
[392714030,1761852632966,-500.0,0.0002404,2]
[392714031,1761852632976,-500.0,0.0002404,2]
[392714032,1761852632985,-500.0,0.0002404,2]
[392714033,1761852632994,-250.0,0.0002404,2]
[392714034,1761852633004,-245.09215101,0.0002404,2]
[392714035,1761852633016,-254.90784899,0.0002404,2]
[392714036,1761852633026,-500.0,0.0002404,2]
[392714037,1761852633035,-500.0,0.0002404,2]
[392714038,1761852633045,-250.0,0.0002404,2]
[392714039,1761852633055,-500.0,0.0002404,2]
[392714040,1761852633064,-500.0,0.0002404,2]
[392714041,1761852633074,-250.0,0.0002404,2]
[392714042,1761852633088,-500.0,0.0002404,2]
[392714043,1761852633103,-94.34611461,0.0002404,2]
[392714044,1761852633124,-405.65388539,0.0002404,2]
[392714045,1761852633135,-250.0,0.0002404,2]
[392714046,1761852633145,-500.0,0.0002404,2]
[392714047,1761852633154,-500.0,0.0002404,2]
[392714048,1761852633165,-500.0,0.0002404,2]
[392714049,1761852633174,-250.0,0.0002404,2]
[392714050,1761852633184,-500.0,0.0002404,2]
[392714051,1761852633194,-312.06061461,0.0002404,2]
[392714052,1761852633206,-187.93938539,0.0002404,2]
[392714053,1761852633216,-250.0,0.0002404,2]
[392714054,1761852633226,-500.0,0.0002404,2]
[392714055,1761852633235,-500.0,0.0002404,2]
[392714056,1761852633245,-250.0,0.0002404,2]
[392714057,1761852633255,-500.0,0.0002404,2]
[392714058,1761852633264,-500.0,0.0002404,2]
[392714059,1761852633273,-250.0,0.0002404,2]
[392714060,1761852633283,-500.0,0.0002404,2]
[392714061,1761852633292,-574.12855637,0.0002404,2]
[392714062,1761852633302,-500.0,0.0002404,2]
[392714063,1761852633312,-500.0,0.0002404,2]
[392714064,1761852633322,-250.0,0.0002404,2]
[392714065,1761852633331,-500.0,0.0002404,2]
[392714066,1761852633340,-500.0,0.0002404,2]
[392714067,1761852633350,-322.6107,0.0002404,2]
[392714068,1761852633360,-620.0,0.0002404,2]
[392714069,1761852633369,-586.17786009,0.0002404,2]
[392714070,1761852633379,-500.0,0.0002404,2]
[392714071,1761852633388,-500.0,0.0002404,2]
[392714072,1761852633398,-250.0,0.0002404,2]
[392714073,1761852633406,-500.0,0.0002404,2]
[392714074,1761852633416,-250.0,0.0002404,2]
[392714075,1761852633425,-500.0,0.0002404,2]
[392714076,1761852633435,-250.0,0.0002404,2]
[392714077,1761852633444,-558.77204441,0.0002404,2]
[392714078,1761852633453,-250.0,0.0002404,2]
[392714079,1761852633463,-250.0,0.0002404,2]
[392714080,1761852633472,-250.0,0.0002404,2]
[392714081,1761852633492,-250.0,0.0002404,2]
[392714082,1761852633502,-250.0,0.0002404,2]
[392714083,1761852633512,-250.0,0.0002404,2]
[392714084,1761852633522,-250.0,0.0002404,2]
[392714085,1761852633531,-250.0,0.0002404,2]
[392714086,1761852633541,-250.0,0.0002404,2]
[392714087,1761852633550,-250.0,0.0002404,2]
[392714088,1761852633560,-250.0,0.0002404,2]
[392714089,1761852633570,-250.0,0.0002404,2]
[392714090,1761852633580,-250.0,0.0002404,2]
[392714091,1761852633589,-250.0,0.0002404,2]
[392714092,1761852633599,-250.0,0.0002404,2]
[392714093,1761852633610,-250.0,0.0002404,2]
[392714094,1761852633620,-250.0,0.0002404,2]
[392714095,1761852633630,-250.0,0.0002404,2]
[392714096,1761852633640,-250.0,0.0002404,2]
[392714097,1761852633650,-250.0,0.0002404,2]
[392714098,1761852633660,-250.0,0.0002404,2]
[392714099,1761852633670,-250.0,0.0002404,2]
[392714100,1761852633679,-250.0,0.0002404,2]
[392714101,1761852633689,-250.0,0.0002404,2]
[392714102,1761852633698,-250.0,0.0002404,2]
[392714103,1761852633708,-250.0,0.0002404,2]
[392714104,1761852633717,-250.0,0.0002404,2]
[392714105,1761852633727,-250.0,0.0002404,2]
[392714106,1761852633737,-196.01,0.00024253,2]
[392714107,1761852633746,-6610.7448965,0.00024257,2]
[392714108,1761852633756,-76080.863889,0.00024257,2]
[392714109,1761852633766,-419.0297,0.00024264,2]
[392714110,1761852633776,-1760.78,0.00024292,2]
[392714111,1761852633785,-171.16,0.00024314,2]
[392714112,1761852633795,-1938.0,0.00024508,2]
[392714113,1761852633804,-1000.0,0.00024521,2]
[392714114,1761852633814,-595.37131296,0.00024588,2]
[392714115,1761852633823,-642.94,0.00024588,2]
[392714116,1761852633832,-202.30996,0.0002462,2]
[392714117,1761852633842,-1000.0,0.00024634,2]
[392714118,1761852633854,-177.47,0.00024658,2]
[392714119,1761852633863,-400.0,0.000247,9]
[392714120,1761852633873,-200.0,0.00024701,2]
[392714121,1761852633883,-3528.8966097,0.00024773,2]
[392714122,1761852633892,-323.43491961,0.000248,2]
[392714123,1761852633902,-800.0,0.000248,9]
[392714124,1761852633911,-6471.54939983,0.00024863,3]
[392714125,1761852633926,-17112.21300127,0.00024863,3]
[392714126,1761852633935,-1026.6703065,0.00024872,10]
[392714127,1761852633945,-1320.34209075,0.00024872,10]
[392714128,1761852633954,-1320.34209075,0.00024872,10]
[392714129,1761852633964,-1320.34209075,0.00024872,10]
[392714130,1761852633973,-13439.65008738,0.00024873,2]
[392714131,1761852633984,-29144.18781142,0.00024873,2]
[392714132,1761852633994,-150.53927898,0.00024873,2]
[392714133,1761852634004,-907.72444071,0.00024873,2]
[392714134,1761852634013,-1238.0,0.00024873,2]
[392714135,1761852634022,-1238.0,0.00024873,2]
[392714136,1761852634032,-410.26683856,0.00024873,2]
[392714137,1761852634041,-7709.31491898,0.00024877,3]
[392714138,1761852634053,-15874.44748212,0.00024877,3]
[392714139,1761852634062,-158.519396,0.0002488,7]
[392714140,1761852634071,-151.0,0.0002488,7]
[392714141,1761852634081,-267.574291,0.0002488,7]
[392714142,1761852634095,-151.0,0.0002488,7]
[392714143,1761852634104,-151.180937,0.0002488,7]
[392714144,1761852634114,-151.180937,0.0002488,7]
[392714145,1761852634124,-151.0,0.0002488,7]
[392714146,1761852634133,-151.180937,0.0002488,7]
[392714147,1761852634142,-151.180937,0.0002488,7]
[392714148,1761852634152,-151.0,0.0002488,7]
[392714149,1761852634162,-151.0,0.0002488,7]
[392714150,1761852634171,-163.259379,0.0002488,7]
[392714151,1761852634181,-156.864367,0.0002488,7]
[392714152,1761852634190,-151.0,0.0002488,7]
[392714153,1761852634200,-151.0,0.0002488,7]
[392714154,1761852634209,-176.313072,0.0002488,7]
[392714155,1761852634219,-154.518086,0.0002488,7]
[392714156,1761852634228,-151.0,0.0002488,7]
[392714157,1761852634237,-151.0,0.0002488,7]
[392714158,1761852634246,-151.0,0.0002488,7]
[392714159,1761852634256,-415.48332,0.0002488,7]
[392714160,1761852634266,-151.0,0.0002488,7]
[392714161,1761852634275,-151.0,0.0002488,7]
[392714162,1761852634284,-415.48332,0.0002488,7]
[392714163,1761852634294,-151.0,0.0002488,7]
[392714164,1761852634303,-415.48332,0.0002488,7]
[392714165,1761852634313,-151.0,0.0002488,7]
[392714166,1761852634322,-415.48332,0.0002488,7]
[392714167,1761852634332,-151.0,0.0002488,7]
[392714168,1761852634342,-187.797572,0.0002488,7]
[392714169,1761852634352,-151.0,0.0002488,7]
[392714170,1761852634361,-340.290814,0.0002488,7]
[392714171,1761852634371,-187.797572,0.0002488,7]
[392714172,1761852634380,-151.0,0.0002488,7]
[392714173,1761852634390,-187.797572,0.0002488,7]
[392714174,1761852634400,-340.290814,0.0002488,7]
[392714175,1761852634414,-151.0,0.0002488,7]
[392714176,1761852634424,-187.797572,0.0002488,7]
[392714177,1761852634434,-340.290814,0.0002488,7]
[392714178,1761852634443,-340.290814,0.0002488,7]
[392714179,1761852634453,-151.0,0.0002488,7]
[392714180,1761852634463,-151.0,0.0002488,7]
[392714181,1761852634473,-151.0,0.0002488,7]
[392714182,1761852634483,-151.0,0.0002488,7]
[392714183,1761852634493,-151.0,0.0002488,7]
[392714184,1761852634503,-151.0,0.0002488,7]
[392714185,1761852634513,-151.0,0.0002488,7]
[392714186,1761852634523,-2338.596826,0.0002488,7]
[392714187,1761852634533,-2338.596826,0.0002488,7]
[392714188,1761852634543,-151.0,0.0002488,7]
[392714189,1761852634552,-2338.596826,0.0002488,7]
[392714190,1761852634562,-839.55854,0.0002488,7]
[392714191,1761852634572,-151.0,0.0002488,7]
[392714192,1761852634582,-2338.596826,0.0002488,7]
[392714193,1761852634591,-151.0,0.0002488,7]
[392714194,1761852634604,-839.55854,0.0002488,7]
[392714195,1761852634614,-151.0,0.0002488,7]
[392714196,1761852634623,-151.0,0.0002488,7]
[392714197,1761852634633,-839.55854,0.0002488,7]
[392714198,1761852634642,-151.0,0.0002488,7]
[392714199,1761852634652,-839.55854,0.0002488,7]
[392714200,1761852634661,-151.0,0.0002488,7]
[392714201,1761852634670,-175.122109,0.0002488,7]
[392714202,1761852634680,-151.661513,0.0002488,7]
[392714203,1761852634690,-231.829585,0.0002488,7]
[392714204,1761852634699,-151.661513,0.0002488,7]
[392714205,1761852634709,-151.661513,0.0002488,7]
[392714206,1761852634718,-151.661513,0.0002488,7]
[392714207,1761852634728,-151.0,0.0002488,7]
[392714208,1761852634737,-151.0,0.0002488,7]
[392714209,1761852634747,-151.552995,0.0002488,7]
[392714210,1761852634756,-151.0,0.0002488,7]
[392714211,1761852634766,-151.0,0.0002488,7]
[392714212,1761852634775,-151.0,0.0002488,7]
[392714213,1761852634785,-152.591698,0.0002488,7]